bitfinex/quotes_BTCUSD_20220115
["timestamp","ask_amount","ask_price","bid_price","bid_amount"]
[1642266077138,6.876e-05,43373.0,43372.0,1.0913]
[1642266077940,6.876e-05,43373.0,43372.0,0.0413]
[1642266078540,6.876e-05,43373.0,43372.0,1.1413]
[1642266078943,6.876e-05,43373.0,43372.0,0.0413]
[1642266079145,6.876e-05,43373.0,43371.0,0.111641]
[1642266079341,6.876e-05,43373.0,43371.0,0.157941]
[1642266082527,6.876e-05,43373.0,43371.0,0.0463]
[1642266084155,6.876e-05,43373.0,43370.0,0.05646248]
[1642266084358,6.876e-05,43373.0,43371.0,0.0463]
[1642266085752,6.876e-05,43373.0,43370.0,0.05646248]
[1642266087685,0.28405968,43371.0,43370.0,0.05646248]
[1642266088087,6.876e-05,43373.0,43370.0,0.05646248]
[1642266094042,6.876e-05,43373.0,43368.0,0.05763]
[1642266094542,0.00090863,43373.0,43368.0,0.05763]
[1642266096488,0.31664519,43374.0,43369.0,1.25]
[1642266096689,0.31664519,43374.0,43368.0,0.05763]
[1642266096889,0.31664519,43374.0,43369.0,6.877e-05]
[1642266097293,0.31664519,43374.0,43366.0,0.00012033]
[1642266098494,0.31664519,43374.0,43368.0,0.057628]
[1642266098693,0.00129029,43377.0,43369.0,0.14235763]
[1642266098937,0.00129029,43377.0,43371.0,0.115243]
[1642266099437,0.0009337,43375.0,43369.0,6.876e-05]
[1642266099637,0.0009337,43375.0,43369.0,0.05769876]
[1642266099842,0.0009337,43375.0,43369.0,0.05763]
[1642266099843,0.31450658,43374.0,43369.0,0.05763]
[1642266100238,0.31450658,43374.0,43369.0,0.05202]
[1642266100639,0.31450658,43374.0,43367.0,0.58255867]
[1642266101040,0.31450658,43374.0,43368.0,8.595e-05]
[1642266102141,0.31450658,43374.0,43368.0,0.00278443]
[1642266102346,0.31450658,43374.0,43368.0,0.06041543]
[1642266102588,0.31450658,43374.0,43369.0,6.876e-05]
[1642266103497,0.54450658,43374.0,43369.0,6.876e-05]
[1642266104296,0.54450658,43374.0,43369.0,0.00276724]
[1642266105295,0.54450658,43374.0,43369.0,0.00546572]
[1642266105898,0.23,43374.0,43369.0,0.00546572]
[1642266106098,0.23,43374.0,43369.0,0.13655342]
[1642266106358,0.23,43374.0,43361.0,0.01904581]
[1642266106359,0.00129858,43370.0,43361.0,0.01904581]
[1642266106558,0.00129858,43370.0,43362.0,0.5]
[1642266106559,0.00120509,43363.0,43362.0,0.5]
[1642266106757,0.00120509,43363.0,43362.0,0.50012033]
[1642266107260,0.00120509,43363.0,43362.0,0.57863101]
[1642266107462,0.00120509,43363.0,43362.0,0.58132949]
[1642266108458,0.00120509,43363.0,43362.0,0.58402797]
[1642266108660,0.13749786,43363.0,43362.0,0.58402797]
[1642266109059,0.13749786,43363.0,43362.0,0.00551729]
[1642266109462,0.13749786,43363.0,43362.0,0.00832143]
[1642266110592,0.13749786,43363.0,43362.0,0.01112557]
[1642266111393,0.13749786,43363.0,43362.0,0.01123123]
[1642266111593,0.13749786,43363.0,43362.0,0.01392971]
[1642266111994,0.13749786,43363.0,43362.0,0.01626235]
[1642266112193,0.00120509,43363.0,43362.0,0.01626235]
[1642266112599,0.00120509,43363.0,43362.0,0.01906649]
[1642266112897,0.00120509,43363.0,43362.0,0.02139913]
[1642266113094,0.12653666,43363.0,43362.0,0.02139913]
[1642266113294,0.00120509,43363.0,43362.0,0.02139913]
[1642266113496,0.12568966,43363.0,43362.0,0.02420327]
[1642266113941,0.35568966,43363.0,43362.0,0.02653591]
[1642266114641,0.23120509,43363.0,43362.0,0.02934005]
[1642266115040,0.23120509,43363.0,43362.0,0.03167269]
[1642266115246,0.35530691,43363.0,43362.0,0.03167269]
[1642266115642,0.35530691,43363.0,43362.0,0.03177835]
[1642266115843,0.35530691,43363.0,43362.0,0.02907987]
[1642266116044,0.23120509,43363.0,43362.0,0.03141251]
[1642266116644,0.23120509,43363.0,43362.0,0.03151817]
[1642266117045,0.23120509,43363.0,43362.0,0.03385081]
[1642266117247,0.23,43363.0,43362.0,0.03385081]
[1642266117446,0.23,43363.0,43362.0,0.61798982]
[1642266117691,0.23,43363.0,43362.0,0.62079396]
[1642266117894,0.23,43363.0,43362.0,0.61809548]
[1642266118193,0.23,43363.0,43362.0,0.03628911]
[1642266118791,0.23,43363.0,43362.0,0.03639477]
[1642266119192,0.23,43363.0,43362.0,0.03872741]
[1642266119792,0.23,43363.0,43362.0,0.04153155]
[1642266119991,0.23,43363.0,43362.0,0.03883307]
[1642266120192,0.23,43363.0,43362.0,0.04116571]
[1642266120394,0.23,43363.0,43362.0,0.62530472]
[1642266120793,0.23,43363.0,43362.0,0.62541038]
[1642266121192,0.23,43363.0,43362.0,0.62774302]
[1642266121442,0.23,43363.0,43362.0,0.04360401]
[1642266121842,0.23,43363.0,43362.0,0.04630249]
[1642266122043,0.23,43363.0,43362.0,0.04370967]
[1642266122245,0.23,43363.0,43362.0,0.63018132]
[1642266123047,0.23,43363.0,43362.0,0.63028698]
[1642266123443,0.23,43363.0,43362.0,0.63261962]
[1642266124043,0.23,43363.0,43362.0,0.6353181]
[1642266124247,0.23,43363.0,43362.0,0.05117909]
[1642266124445,0.23,43363.0,43362.0,1.07796196]
[1642266124645,0.06770338,43363.0,43362.0,1.07796196]
[1642266125093,0.06770338,43363.0,43362.0,1.07526348]
[1642266125294,0.06770338,43363.0,43362.0,0.05081325]
[1642266125496,0.06770338,43363.0,43362.0,0.05314589]
[1642266125995,0.06770338,43363.0,43362.0,1.21607855]
[1642266126194,0.0650049,43363.0,43362.0,1.21607855]
[1642266126395,0.0650049,43363.0,43362.0,1.21374591]
[1642266126796,0.0650049,43363.0,43362.0,0.8707943]
[1642266127198,0.0650049,43363.0,43362.0,0.73241753]
[1642266127498,0.0650049,43363.0,43362.0,0.73231186]
[1642266127698,0.0650049,43363.0,43362.0,0.39376485]
[1642266127898,0.0650049,43363.0,43362.0,0.52914874]
[1642266128499,0.0650049,43363.0,43362.0,0.52914873]
[1642266129639,0.0650049,43363.0,43362.0,0.52914872]
[1642266130642,0.0650049,43363.0,43362.0,0.52914871]
[1642266131341,0.0650049,43363.0,43362.0,0.52925437]
[1642266131542,0.0650049,43363.0,43362.0,0.52914871]
[1642266131742,0.00128075,43373.0,43362.0,0.5291487]
[1642266131942,0.00370372,43373.0,43363.0,2.50267384]
[1642266132139,0.00370372,43373.0,43367.0,0.057623]
[1642266132796,0.00370372,43373.0,43372.0,1.68729125]
[1642266133001,0.00370372,43373.0,43372.0,1.76564202]
[1642266133396,0.00370372,43373.0,43369.0,0.95432663]
[1642266133600,0.00370372,43373.0,43370.0,0.14166935]
[1642266133897,0.00370372,43373.0,43370.0,0.58219511]
[1642266134099,0.00370372,43373.0,43372.0,1.81554343]
[1642266134498,0.00370372,43373.0,43372.0,1.91564909]
[1642266134697,0.00370372,43373.0,43372.0,1.81564909]
[1642266134897,0.00370372,43373.0,43372.0,0.26564909]
[1642266135498,0.00370372,43373.0,43372.0,0.26575475]
[1642266135899,0.00370372,43373.0,43372.0,0.00254395]
[1642266136345,0.00370372,43373.0,43372.0,0.15524064]
[1642266136546,0.00370372,43373.0,43372.0,0.1553463]
[1642266136746,0.00370372,43373.0,43372.0,0.15767893]
[1642266137147,0.00370372,43373.0,43372.0,0.4304342]
[1642266137548,0.00370372,43373.0,43372.0,0.53053986]
[1642266137747,0.00370372,43373.0,43372.0,0.82784317]
[1642266137949,0.00370372,43373.0,43372.0,0.8301758]
[1642266138148,0.00370372,43373.0,43372.0,0.3801758]
[1642266138851,0.00370372,43373.0,43372.0,0.28261409]
[1642266139748,0.00370372,43373.0,43372.0,0.28271975]
[1642266139949,0.00370372,43373.0,43372.0,0.28505238]
[1642266140387,0.00370372,43373.0,43372.0,0.42121719]
[1642266140793,0.00093369,43375.0,43372.0,0.42121719]
[1642266140794,0.00082803,43375.0,43373.0,2.45]
[1642266141089,0.1,43382.0,43374.0,0.0463]
[1642266141494,0.00020628,43381.0,43374.0,0.0463]
[1642266141889,0.00018909,43380.0,43377.0,0.32263859]
[1642266142089,0.00018909,43380.0,43378.0,0.0463]
[1642266142290,0.0001719,43379.0,43378.0,0.0463]
[1642266142989,0.09783927,43382.0,43378.0,0.0463]
[1642266143846,0.0987729,43382.0,43378.0,0.0463]
[1642266144054,0.001,43385.0,43384.0,2.49732239]
[1642266144249,0.001,43385.0,43384.0,1.4463]
[1642266144648,0.001,43385.0,43384.0,0.5463]
[1642266145247,0.001,43385.0,43384.0,1.23986221]
[1642266146653,0.001,43385.0,43384.0,1.35506921]
[1642266147047,0.001,43385.0,43384.0,0.85506921]
[1642266147247,0.00130152,43386.0,43385.0,1.3]
[1642266147449,0.00130152,43386.0,43385.0,0.0463]
[1642266147692,0.00142185,43386.0,43385.0,0.18282415]
[1642266147894,0.00142185,43386.0,43385.0,0.0463]
[1642266152141,0.00142185,43386.0,43385.0,0.35192642]
[1642266153741,0.00142185,43386.0,43385.0,0.0463]
[1642266155799,0.00142185,43386.0,43385.0,0.73225386]
[1642266156200,0.00142185,43386.0,43385.0,0.83225386]
[1642266156600,0.00142185,43386.0,43385.0,0.28225386]
[1642266156799,0.00142185,43386.0,43385.0,0.1463]
[1642266157203,0.00142185,43386.0,43385.0,0.28266332]
[1642266157400,0.00142185,43386.0,43385.0,0.18266332]
[1642266157601,0.00142185,43386.0,43385.0,2.33266332]
[1642266158101,0.00142185,43386.0,43385.0,2.43266332]
[1642266159547,0.00142185,43386.0,43385.0,0.28266332]
[1642266160046,0.00142185,43386.0,43385.0,0.18266332]
[1642266160645,0.004,43387.0,43386.0,2.45048475]
[1642266160846,0.004,43387.0,43386.0,1.80048475]
[1642266161049,0.003,43390.0,43389.0,2.25]
[1642266161247,0.001,43392.0,43390.0,2.45]
[1642266161446,0.1,43400.0,43392.0,1.55]
[1642266161646,0.1,43400.0,43390.0,0.0463]
[1642266161847,0.00010314,43392.0,43390.0,0.0463]
[1642266162050,0.00010314,43392.0,43391.0,2.57940001]
[1642266162250,0.00189434,43394.0,43391.0,0.57940001]
[1642266162454,0.00189434,43394.0,43392.0,0.057593]
[1642266162694,0.00012033,43393.0,43392.0,0.057593]
[1642266163997,0.00021564,43397.0,43392.0,0.057593]
[1642266164298,0.00093351,43395.0,43392.0,0.103893]
[1642266165101,0.00021564,43397.0,43392.0,0.103893]
[1642266165296,0.0009335,43396.0,43392.0,0.103893]
[1642266165497,0.005838,43398.0,43392.0,0.103893]
[1642266165896,6.876e-05,43397.0,43392.0,0.103893]
[1642266166347,6.876e-05,43397.0,43392.0,0.0463]
[1642266167251,6.876e-05,43397.0,43391.0,0.28698183]
[1642266168050,6.876e-05,43397.0,43392.0,0.057596]
[1642266168251,0.00320828,43398.0,43393.0,0.85]
[1642266168450,0.00320828,43398.0,43392.0,0.057596]
[1642266168650,0.00320828,43398.0,43393.0,6.876e-05]
[1642266168852,0.00414174,43398.0,43393.0,6.876e-05]
[1642266169853,0.00320828,43398.0,43393.0,6.876e-05]
[1642266170100,0.00414175,43398.0,43393.0,6.876e-05]
[1642266171099,0.00320828,43398.0,43393.0,6.876e-05]
[1642266171400,0.00414175,43398.0,43392.0,0.05768295]
[1642266171801,0.00414175,43398.0,43393.0,6.876e-05]
[1642266172400,0.00320828,43398.0,43393.0,6.876e-05]
[1642266172600,0.00414175,43398.0,43392.0,8.595e-05]
[1642266173700,0.00414174,43398.0,43392.0,8.595e-05]
[1642266174651,0.00320828,43398.0,43392.0,0.05768295]
[1642266174853,0.00320828,43398.0,43392.0,8.595e-05]
[1642266174854,0.00414174,43398.0,43392.0,8.595e-05]
[1642266175052,0.00414174,43398.0,43393.0,6.876e-05]
[1642266175253,0.00414174,43398.0,43392.0,8.595e-05]
[1642266175853,0.00320828,43398.0,43392.0,8.595e-05]
[1642266176151,0.00414174,43398.0,43392.0,0.05768295]
[1642266176351,0.00414174,43398.0,43392.0,8.595e-05]
[1642266176553,0.00414174,43398.0,43393.0,6.876e-05]
[1642266176751,0.00414174,43398.0,43392.0,8.595e-05]
[1642266177152,0.00320828,43398.0,43392.0,8.595e-05]
[1642266177351,0.27590975,43395.0,43392.0,8.595e-05]
[1642266178505,0.27590975,43395.0,43390.0,0.00012033]
[1642266179003,0.27590975,43395.0,43390.0,0.43322831]
[1642266179402,0.00414172,43398.0,43391.0,0.00010314]
[1642266179602,0.00320828,43398.0,43391.0,0.00010314]
[1642266179802,0.00414171,43398.0,43391.0,0.00010314]
[1642266180403,0.375026,43397.0,43391.0,0.00010314]
[1642266180607,0.375026,43397.0,43390.0,0.00012033]
[1642266180608,0.30988901,43392.0,43390.0,0.00012033]
[1642266181004,0.00414173,43398.0,43391.0,0.32259106]
[1642266181452,0.00414173,43398.0,43392.0,8.595e-05]
[1642266181851,0.00320828,43398.0,43392.0,8.595e-05]
[1642266182051,0.00414174,43398.0,43392.0,8.595e-05]
[1642266182754,0.00403608,43398.0,43392.0,8.595e-05]
[1642266182952,0.00403608,43398.0,43390.0,0.00012033]
[1642266183156,0.00310262,43398.0,43390.0,0.00012033]
[1642266183352,0.00403608,43398.0,43390.0,0.00012033]
[1642266183551,0.00403608,43398.0,43389.0,0.0007819]
[1642266183752,0.00403608,43398.0,43390.0,0.00012033]
[1642266184354,0.00310262,43398.0,43390.0,0.00012033]
[1642266184553,0.00403607,43398.0,43390.0,0.00012033]
[1642266184753,0.00403607,43398.0,43389.0,0.00091943]
[1642266184954,0.00403607,43398.0,43390.0,0.00012033]
[1642266185200,0.00170344,43398.0,43390.0,0.00012033]
[1642266185603,0.00076999,43398.0,43388.0,0.28918452]
[1642266185804,0.00012033,43397.0,43389.0,0.00078191]
[1642266186201,0.00010314,43396.0,43389.0,0.00078191]
[1642266186601,8.595e-05,43395.0,43389.0,0.00078191]
[1642266186800,8.595e-05,43395.0,43388.0,0.28918452]
[1642266187002,6.876e-05,43394.0,43388.0,0.28918452]
[1642266187402,0.26520502,43392.0,43388.0,0.28918452]
[1642266187604,0.26520502,43392.0,43386.0,0.00048475]
[1642266188102,0.26520502,43392.0,43387.0,0.00077486]
[1642266188502,0.26520502,43392.0,43388.0,0.29097402]
[1642266188852,6.876e-05,43394.0,43388.0,0.29097402]
[1642266189352,0.00093349,43395.0,43388.0,0.29097402]
[1642266189552,0.00093349,43395.0,43389.0,8.595e-05]
[1642266190252,6.876e-05,43398.0,43389.0,8.595e-05]
[1642266190454,0.26177651,43393.0,43389.0,8.595e-05]
[1642266194001,0.26177651,43393.0,43388.0,0.00010314]
[1642266195104,0.13882319,43392.0,43388.0,0.00010314]
[1642266195302,0.0463,43391.0,43388.0,0.00010314]
[1642266195502,0.0463,43391.0,43387.0,0.00089518]
[1642266195701,0.0463,43391.0,43388.0,0.00010314]
[1642266196750,0.0463,43391.0,43387.0,0.00089519]
[1642266196952,0.0463,43391.0,43388.0,0.00010314]
[1642266197151,0.0313,43391.0,43388.0,0.00010314]
[1642266197556,0.0313,43391.0,43385.0,0.30572017]
[1642266197755,0.0313,43391.0,43387.0,0.00077486]
[1642266198758,0.0313,43391.0,43381.0,0.58219511]
[1642266199053,0.0313,43391.0,43387.0,0.00077486]
[1642266199954,0.0313,43391.0,43383.0,0.28376635]
[1642266200207,0.0313,43391.0,43387.0,0.00077486]
[1642266201207,0.0313,43391.0,43385.0,0.29277232]
[1642266201414,0.0313,43391.0,43387.0,0.00077486]
[1642266202106,0.64694413,43393.0,43387.0,0.00077486]
[1642266202307,0.64694413,43393.0,43385.0,0.29277232]
[1642266202509,6.876e-05,43392.0,43387.0,0.00077485]
[1642266203408,0.13554214,43392.0,43387.0,0.00077485]
[1642266203608,6.876e-05,43392.0,43385.0,0.29277232]
[1642266203847,0.64690723,43393.0,43387.0,0.00077486]
[1642266204054,0.13691691,43392.0,43387.0,0.00077486]
[1642266204248,0.13773357,43392.0,43388.0,6.876e-05]
[1642266204447,0.262997,43393.0,43388.0,6.876e-05]
[1642266205047,0.375026,43392.0,43387.0,0.00077485]
[1642266205248,0.375026,43392.0,43388.0,6.876e-05]
[1642266206051,0.4208285,43391.0,43388.0,6.876e-05]
[1642266206250,0.375026,43390.0,43387.0,0.00077485]
[1642266206449,0.375026,43390.0,43388.0,6.876e-05]
[1642266206655,0.475026,43390.0,43388.0,6.876e-05]
[1642266207049,0.370026,43390.0,43388.0,6.876e-05]
[1642266207450,0.370026,43390.0,43387.0,0.00077486]
[1642266207697,0.370026,43390.0,43388.0,6.876e-05]
[1642266208696,0.370026,43390.0,43387.0,0.00077486]
[1642266208899,0.00093347,43395.0,43391.0,0.31862804]
[1642266209098,0.375012,43394.0,43388.0,6.876e-05]
[1642266209402,0.00093347,43395.0,43388.0,6.876e-05]
[1642266209598,0.375012,43394.0,43388.0,6.876e-05]
[1642266209998,0.375012,43394.0,43389.0,0.29227962]
[1642266210201,0.00093349,43395.0,43389.0,0.29227962]
[1642266210498,1.02752143,43399.0,43389.0,0.29227962]
[1642266210699,0.48943674,43398.0,43389.0,0.29227962]
[1642266210899,0.37511514,43398.0,43389.0,0.29227962]
[1642266211101,0.47511514,43398.0,43389.0,0.29227962]
[1642266211555,0.58786491,43398.0,43389.0,0.29227962]
[1642266211755,0.47511514,43398.0,43389.0,0.29227962]
[1642266212157,0.47511514,43398.0,43389.0,0.39227962]
[1642266212555,0.587352,43398.0,43389.0,0.49227962]
[1642266212956,0.47511514,43398.0,43389.0,0.49227962]
[1642266213256,0.37511514,43398.0,43389.0,0.49227962]
[1642266213858,0.48855821,43398.0,43389.0,0.49227962]
[1642266214460,0.00093347,43397.0,43390.0,0.00078328]
[1642266214657,0.375012,43396.0,43390.0,0.00078328]
[1642266214857,0.37508076,43396.0,43390.0,0.00078328]
[1642266215511,0.37508076,43396.0,43389.0,0.49227962]
[1642266215711,0.37508076,43396.0,43390.0,0.00078329]
[1642266216512,0.37508076,43396.0,43390.0,0.10078329]
[1642266216713,0.37508076,43396.0,43390.0,0.1]
[1642266216913,0.37008076,43396.0,43390.0,0.10078329]
[1642266217916,0.37008076,43396.0,43390.0,0.1]
[1642266218215,0.37008076,43396.0,43390.0,0.10078329]
[1642266219052,0.37008076,43396.0,43390.0,0.1]
[1642266219253,0.47008076,43396.0,43390.0,0.10078329]
[1642266219760,0.00120027,43395.0,43390.0,0.10078329]
[1642266219953,0.375012,43394.0,43390.0,0.10078329]
[1642266220151,0.475012,43394.0,43390.0,0.10078329]
[1642266220352,0.475012,43394.0,43390.0,0.1]
[1642266220552,0.532635,43394.0,43390.0,0.10078331]
[1642266221552,0.532635,43394.0,43390.0,0.1]
[1642266221754,0.532635,43394.0,43390.0,0.10078331]
[1642266222605,0.00126034,43391.0,43390.0,0.10078331]
[1642266222801,2.47627034,43391.0,43390.0,0.1]
[1642266223001,2.47627034,43391.0,43390.0,0.10078331]
[1642266223202,2.57627034,43391.0,43390.0,0.10078331]
[1642266223902,2.57627034,43391.0,43390.0,0.1]
[1642266224303,0.47627034,43391.0,43390.0,0.1]
[1642266224905,1.37616468,43391.0,43390.0,0.1]
[1642266226355,0.47616468,43391.0,43390.0,0.1]
[1642266226555,0.37616468,43391.0,43390.0,0.1]
[1642266226955,0.37501,43391.0,43390.0,0.1]
[1642266227356,0.37267737,43391.0,43390.0,0.1]
[1642266227757,1.42267737,43391.0,43390.0,0.1]
[1642266229258,0.37267737,43391.0,43390.0,0.1]
[1642266231414,0.36997889,43391.0,43390.0,0.1]
[1642266233016,0.36997889,43391.0,43388.0,0.00085211]
[1642266233617,0.36997889,43391.0,43388.0,6.876e-05]
[1642266234062,0.36997889,43391.0,43387.0,0.00078338]
[1642266234063,0.61252915,43391.0,43387.0,0.00078338]
[1642266234263,0.61252915,43391.0,43388.0,6.876e-05]
[1642266234463,0.4712169,43391.0,43388.0,6.876e-05]
[1642266234964,0.67037759,43391.0,43387.0,0.00078338]
[1642266235368,0.67037759,43391.0,43388.0,6.876e-05]
[1642266236364,0.67037759,43391.0,43387.0,0.00078338]
[1642266236564,0.67037759,43391.0,43388.0,6.876e-05]
[1642266237604,0.67037759,43391.0,43387.0,0.00078338]
[1642266237807,0.67037759,43391.0,43388.0,6.876e-05]
[1642266238606,0.67037759,43391.0,43387.0,0.00078338]
[1642266239007,0.67037759,43391.0,43388.0,6.876e-05]
[1642266240008,0.67037759,43391.0,43387.0,0.00078338]
[1642266240207,0.67037759,43391.0,43388.0,6.876e-05]
[1642266241010,0.66537759,43391.0,43388.0,6.876e-05]
[1642266241209,0.66537759,43391.0,43387.0,0.00078338]
[1642266241470,0.66537759,43391.0,43388.0,6.876e-05]
[1642266241872,0.52384179,43391.0,43388.0,6.876e-05]
[1642266242273,0.52384179,43391.0,43387.0,0.00078338]
[1642266242470,0.52384179,43391.0,43388.0,6.876e-05]
[1642266242671,0.66428909,43391.0,43388.0,6.876e-05]
[1642266242973,0.52384179,43391.0,43388.0,6.876e-05]
[1642266243174,0.66609259,43391.0,43388.0,6.876e-05]
[1642266243572,0.52384179,43391.0,43387.0,0.00078338]
[1642266243770,0.52384179,43391.0,43388.0,6.876e-05]
[1642266243973,0.66475608,43391.0,43388.0,6.876e-05]
[1642266244173,0.52384179,43391.0,43388.0,6.876e-05]
[1642266244373,0.66494666,43391.0,43388.0,6.876e-05]
[1642266244672,0.46997889,43391.0,43387.0,0.00078338]
[1642266245111,0.46997889,43391.0,43388.0,6.876e-05]
[1642266245911,0.46987323,43391.0,43387.0,0.00078338]
[1642266246114,0.36987323,43391.0,43388.0,6.876e-05]
[1642266247012,0.36987323,43391.0,43387.0,0.00078338]
[1642266247413,0.36987323,43391.0,43388.0,6.876e-05]
[1642266248416,0.3675406,43391.0,43387.0,0.00078338]
[1642266248617,0.3675406,43391.0,43388.0,6.876e-05]
[1642266249055,0.4675406,43391.0,43388.0,6.876e-05]
[1642266249454,0.4675406,43391.0,43387.0,0.00078338]
[1642266249654,0.4675406,43391.0,43388.0,6.876e-05]
[1642266250657,0.4675406,43391.0,43387.0,0.00078338]
[1642266250862,0.4675406,43391.0,43388.0,6.876e-05]
[1642266251857,0.4675406,43391.0,43387.0,0.00078338]
[1642266252059,0.4675406,43391.0,43388.0,6.876e-05]
[1642266252460,6.876e-05,43396.0,43388.0,6.876e-05]
[1642266252743,6.876e-05,43396.0,43388.0,0.00133405]
[1642266252940,6.876e-05,43396.0,43390.0,0.00078331]
[1642266253937,6.876e-05,43396.0,43388.0,0.58226387]
[1642266253938,0.375012,43395.0,43388.0,0.58226387]
[1642266254140,0.1,43395.0,43390.0,0.00078329]
[1642266254738,0.36734793,43395.0,43390.0,0.00078329]
[1642266254941,0.375012,43394.0,43390.0,0.00078329]
[1642266255140,0.475012,43394.0,43388.0,6.876e-05]
[1642266255339,0.475012,43394.0,43390.0,0.00078329]
[1642266256361,0.475012,43394.0,43388.0,6.876e-05]
[1642266256558,1.13705353,43391.0,43390.0,0.00078331]
[1642266256760,1.51206553,43391.0,43390.0,0.00078331]
[1642266256959,1.61206553,43391.0,43390.0,0.00078331]
[1642266257559,1.61206553,43391.0,43386.0,0.00010314]
[1642266257860,0.375012,43390.0,43388.0,0.00078335]
[1642266258058,0.1,43390.0,43388.0,0.00078335]
[1642266258762,0.1,43390.0,43384.0,0.00013752]
[1642266258959,0.28972005,43387.0,43384.0,0.00013752]
[1642266259159,0.28972005,43387.0,43383.0,0.00015471]
[1642266260210,0.28972005,43387.0,43383.0,0.00093821]
[1642266260611,0.28972005,43387.0,43384.0,0.00013752]
[1642266261419,0.33602005,43387.0,43384.0,0.00013752]
[1642266261614,0.55129138,43387.0,43384.0,0.00013752]
[1642266261811,0.57682138,43387.0,43384.0,0.00013752]
[1642266262612,0.375012,43386.0,43384.0,0.00013752]
[1642266262813,0.375012,43386.0,43383.0,0.00078349]
[1642266263015,0.475012,43386.0,43384.0,0.00013752]
[1642266263415,0.59028363,43386.0,43384.0,0.00013752]
[1642266263616,2.78026277,43385.0,43384.0,0.00013752]
[1642266263859,2.78150624,43385.0,43384.0,0.00013752]
[1642266264062,2.92780624,43385.0,43383.0,0.0007835]
[1642266264260,2.825012,43384.0,43383.0,0.0007835]
[1642266264461,2.87254233,43384.0,43383.0,0.0007835]
[1642266264657,3.33143163,43384.0,43383.0,0.00015471]
[1642266265056,3.33143163,43384.0,43381.0,0.00078354]
[1642266265262,3.01405474,43384.0,43382.0,0.0001719]
[1642266265458,2.725012,43383.0,43382.0,0.0001719]
[1642266265656,2.871312,43383.0,43382.0,0.0001719]
[1642266266060,2.90639285,43383.0,43382.0,0.0001719]
[1642266266258,2.90639285,43383.0,43380.0,0.00078357]
[1642266266460,2.59162113,43382.0,43381.0,0.00018909]
[1642266266662,3.11293313,43382.0,43381.0,0.00018909]
[1642266266858,3.02645807,43382.0,43381.0,0.00018909]
[1642266267059,3.02635241,43382.0,43381.0,0.00018909]
[1642266267457,2.971312,43382.0,43379.0,0.0007836]
[1642266267708,0.375012,43381.0,43380.0,0.00020628]
[1642266267907,0.421312,43381.0,43380.0,0.00020628]
[1642266268107,0.521312,43381.0,43380.0,0.00020628]
[1642266268307,1.321312,43381.0,43380.0,0.00020628]
[1642266268707,1.321312,43381.0,43378.0,0.00078363]
[1642266268907,1.33363017,43380.0,43379.0,0.00022347]
[1642266269109,1.85494217,43380.0,43379.0,0.00022347]
[1642266269508,1.85260954,43380.0,43379.0,0.00022347]
[1642266269907,1.85260954,43380.0,43377.0,0.00078366]
[1642266270108,0.375012,43379.0,43378.0,0.00024066]
[1642266270307,0.421312,43379.0,43378.0,0.00024066]
[1642266270508,0.521312,43379.0,43378.0,0.00024066]
[1642266270709,0.421312,43379.0,43378.0,0.00024066]
[1642266271109,0.421312,43379.0,43376.0,0.00078368]
[1642266271375,0.375012,43379.0,43377.0,0.00025785]
[1642266271562,0.0463,43378.0,43377.0,0.00025785]
[1642266272463,0.0463,43378.0,43376.0,0.00027504]
[1642266272663,0.42443011,43377.0,43376.0,0.00027504]
[1642266272965,0.52443011,43377.0,43376.0,0.00027504]
[1642266273367,0.42443011,43377.0,43376.0,0.00027504]
[1642266273563,0.52173163,43377.0,43374.0,0.00078374]
[1642266273764,0.52173163,43377.0,43375.0,0.00029223]
[1642266274766,0.52173163,43377.0,43374.0,0.00078375]
[1642266274966,0.57937381,43377.0,43375.0,0.00029223]
[1642266275409,0.52173163,43377.0,43375.0,0.00029223]
[1642266275606,0.1,43377.0,43375.0,0.00029223]
[1642266276005,0.28129754,43380.0,43374.0,0.00078375]
[1642266276207,0.28129754,43380.0,43375.0,0.00029223]
[1642266276605,0.67294856,43380.0,43375.0,0.00029223]
[1642266276907,0.67294856,43380.0,43375.0,0.00107594]
[1642266277211,0.77294856,43380.0,43376.0,0.00027504]
[1642266277406,0.375012,43379.0,43376.0,0.00027504]
[1642266277608,0.475012,43379.0,43376.0,0.00027504]
[1642266278408,0.475012,43379.0,43375.0,0.00078371]
[1642266278609,0.59831273,43379.0,43376.0,0.00027504]
[1642266278862,0.00121961,43378.0,43376.0,0.00027504]
[1642266279063,1.821312,43377.0,43376.0,0.00027504]
[1642266279458,1.921312,43377.0,43375.0,0.00078373]
[1642266279658,1.921312,43377.0,43376.0,0.00027504]
[1642266280061,0.57896001,43377.0,43376.0,0.00027504]
[1642266280264,1.02896001,43377.0,43376.0,0.00027504]
[1642266280463,0.521312,43377.0,43376.0,0.00027504]
[1642266280662,0.521312,43377.0,43374.0,0.00078374]
[1642266280863,0.521312,43377.0,43375.0,0.00029223]
[1642266281261,0.421312,43377.0,43375.0,0.00029223]
[1642266281862,0.421312,43377.0,43374.0,0.00078375]
[1642266282063,0.421312,43377.0,43375.0,0.00029223]
[1642266282815,0.521312,43377.0,43375.0,0.00029223]
[1642266283210,0.538592,43377.0,43374.0,0.00078375]
[1642266283412,0.538592,43377.0,43375.0,0.00029223]
[1642266284411,0.538592,43377.0,43372.0,0.00349651]
[1642266285315,0.16358,43377.0,43372.0,0.00349651]
[1642266285614,0.06358,43377.0,43372.0,0.00349651]
[1642266286459,0.31453657,43373.0,43372.0,0.00349651]
[1642266286662,0.41453657,43373.0,43372.0,0.00349651]
[1642266287661,0.41453657,43373.0,43370.0,0.00169833]
[1642266287857,0.05764304,43376.0,43368.0,0.30744144]
[1642266288057,0.01717434,43377.0,43371.0,6.876e-05]
[1642266288757,0.36049303,43377.0,43371.0,6.876e-05]
[1642266289160,0.46049303,43377.0,43371.0,6.876e-05]
[1642266289758,0.05764329,43376.0,43371.0,6.876e-05]
[1642266290607,0.11295766,43376.0,43371.0,6.876e-05]
[1642266292008,0.33658248,43373.0,43371.0,6.876e-05]
[1642266292410,0.05764858,43372.0,43368.0,0.00012033]
[1642266292612,0.06008742,43372.0,43368.0,0.00089]
[1642266293008,0.06008742,43372.0,43369.0,0.00010314]
[1642266293609,0.00243884,43372.0,43369.0,0.00010314]
[1642266293873,0.00243884,43372.0,43367.0,0.00010566]
[1642266293874,0.00243884,43372.0,43368.0,0.00089001]
[1642266294075,0.26331388,43370.0,43368.0,0.00089001]
[1642266294274,0.26575272,43370.0,43369.0,0.00010314]
[1642266295274,0.26575272,43370.0,43368.0,0.00012033]
[1642266297912,0.49575272,43370.0,43368.0,0.00012033]
[1642266298117,0.59575272,43370.0,43368.0,0.00012033]
[1642266298511,0.49575272,43370.0,43368.0,0.00012033]
[1642266299712,2.65886006,43370.0,43368.0,0.00012033]
[1642266299914,0.375012,43369.0,43368.0,0.00012033]
[1642266300115,0.47745084,43369.0,43368.0,0.00012033]
[1642266301016,0.37745084,43369.0,43368.0,0.00012033]
[1642266301655,0.3744352,43369.0,43368.0,0.00012033]